Workbook

Sheet 학과별 지원금 합계
A1: ▣ 학과별 통계
A2: 소속 | B2: 합계 | D2: 전공소학회 | G2: 비전공소학회
A3: 지원기준액 | B3: 소학회수 | C3: 지원금액 | D3: 단체수 | E3: 신규 | F3: 지원금 | G3: 단체수 | H3: 신규 | I3: 지원금
A4: 공과대학 | B4: 53 | C4: 9350000 | D4: 29 | E4: 4 | F4: 6950000 | G4: 17 | H4: 3 | I4: 2400000
A5: 건설시스템공학과 | B5: 6 | C5: 1050000 | D5: 3 | E5: 1 | F5: 750000 | G5: 2 | I5: 300000
A6: 건축학과 | B6: 11 | C6: 2400000 | D6: 9 | E6: 1 | F6: 2400000 | H6: 1
A7: 교통시스템공학과 | B7: 6 | C7: 600000 | D7: 3 | E7: 1 | F7: 300000 | G7: 2 | I7: 300000
A8: 기계공학과 | B8: 8 | C8: 2100000 | D8: 5 | E8: 1 | F8: 1700000 | G8: 2 | I8: 400000
A9: 산업공학과 | B9: 7 | C9: 1300000 | D9: 6 | F9: 1200000 | G9: 1 | I9: 100000
A10: 신소재공학과 | B10: 3 | C10: 450000 | D10: 2 | F10: 350000 | G10: 1 | I10: 100000
A11: 융합시스템공학과 | B11: 1 | C11: 200000 | D11: 0 | G11: 1 | I11: 200000
A12: 응용화학생명공학과 | B12: 4 | C12: 500000 | G12: 4 | I12: 500000
A13: 화학공학과 | B13: 4 | C13: 200000 | G13: 2 | H13: 2 | I13: 200000
A14: 환경안전공학과 | B14: 3 | C14: 550000 | D14: 1 | F14: 250000 | G14: 2 | I14: 300000
A15: 사회과학대학 | B15: 19 | C15: 3250000 | D15: 8 | E15: 1 | F15: 2150000 | G15: 9 | H15: 1 | I15: 1100000
A16: 경제학과 | B16: 5 | C16: 550000 | D16: 2 | F16: 350000 | G16: 2 | H16: 1 | I16: 200000
A17: 사회학과 | B17: 1 | C17: 250000 | D17: 1 | F17: 250000
A18: 심리학과 | B18: 7 | C18: 1850000 | D18: 4 | E18: 1 | F18: 1450000 | G18: 2 | I18: 400000
A19: 정치외교학과 | B19: 4 | C19: 400000 | D19: 1 | F19: 100000 | G19: 3 | I19: 300000
A20: 행정학과 | B20: 2 | C20: 200000 | G20: 2 | I20: 200000
A21: 정보통신대학 | B21: 7 | C21: 1550000 | D21: 3 | F21: 1050000 | G21: 4 | I21: 500000
A22: 전자공학과 | B22: 7 | C22: 1550000 | D22: 3 | F22: 1050000 | G22: 4 | I22: 500000
A23: 경영대학 | B23: 10 | C23: 2700000 | D23: 8 | F23: 2600000 | G23: 1 | H23: 1 | I23: 100000
A24: e-비즈니스학과 | B24: 2 | C24: 500000 | D24: 2 | F24: 500000
A25: 경영학과 | B25: 4 | C25: 1150000 | D25: 3 | F25: 1050000 | G25: 1 | I25: 100000
A26: 글로벌경영학과 | B26: 1 | C26: 400000 | D26: 1 | F26: 400000
A27: 금융공학과 | B27: 3 | C27: 650000 | D27: 2 | F27: 650000 | H27: 1
A28: 인문대학 | B28: 14 | C28: 3350000 | D28: 11 | E28: 1 | F28: 3050000 | G28: 2 | I28: 300000
A29: 국어국문학과 | B29: 5 | C29: 700000 | D29: 3 | E29: 1 | F29: 600000 | G29: 1 | I29: 100000
A30: 문화콘텐츠학과 | B30: 4 | C30: 1600000 | D30: 4 | F30: 1600000
A31: 불어불문학과 | B31: 1 | C31: 400000 | D31: 1 | F31: 400000
A32: 사학과 | B32: 2 | C32: 200000 | D32: 2 | F32: 200000
A33: 영어영문학과 | B33: 2 | C33: 450000 | D33: 1 | F33: 250000 | G33: 1 | I33: 200000
A34: 자연과학대학 | B34: 14 | C34: 1150000 | D34: 6 | E34: 2 | F34: 750000 | G34: 2 | H34: 4 | I34: 400000
A35: 물리학과 | B35: 6 | C35: 0 | E35: 2 | H35: 4
A36: 생명과학과 | B36: 2 | C36: 350000 | D36: 2 | F36: 350000
A37: 수학과 | B37: 2 | C37: 200000 | D37: 2 | F37: 200000
A38: 자연과학대학 공통 | B38: 2 | C38: 400000 | G38: 2 | I38: 400000
A39: 화학과 | B39: 2 | C39: 200000 | D39: 2 | F39: 200000
A40: 약학대학 | B40: 12 | C40: 1300000 | D40: 3 | F40: 300000 | G40: 9 | I40: 1000000
A41: 약학과 | B41: 12 | C41: 1300000 | D41: 3 | F41: 300000 | G41: 9 | I41: 1000000
A42: 국제학부 | B42: 4 | C42: 200000 | D42: 2 | E42: 2 | F42: 200000
A43: 국제학부 | B43: 4 | C43: 200000 | D43: 2 | E43: 2 | F43: 200000
A44: 소프트웨어융합대학 | B44: 17 | C44: 2650000 | D44: 10 | E44: 1 | F44: 2050000 | G44: 5 | H44: 1 | I44: 600000
A45: 국방디지털융합학과 | B45: 3 | C45: 100000 | E45: 1 | G45: 1 | H45: 1 | I45: 100000
A46: 디지털미디어학과 | B46: 5 | C46: 950000 | D46: 4 | F46: 850000 | G46: 1 | I46: 100000
A47: 사이버보안학과 | B47: 2 | C47: 200000 | D47: 2 | F47: 200000
A48: 소프트웨어융합대학 공통 | B48: 3 | C48: 400000 | D48: 1 | F48: 100000 | G48: 2 | I48: 300000
A49: 소프트웨어학과 | B49: 3 | C49: 750000 | D49: 2 | F49: 650000 | G49: 1 | I49: 100000
A50: 인공지능융합학과 | B50: 1 | C50: 250000 | D50: 1 | F50: 250000
A51: 합계 | B51: 150 | C51: 25500000 | D51: 80 | E51: 11 | F51: 19100000 | G51: 49 | H51: 10 | I51: 6400000

Sheet 소학회별 지원금
A1: ▣ 소학회별 현황
A2: 소학회명 | B2: 대학 | C2: 학과 | D2: 구분 | E2: 합산 | F2: 등수 | G2: 지원금 | H2: 등급
A3: A-FA(Ajou Future Automobile) | B3: 공과대학 | C3: 기계공학과 | D3: 전공 | E3: =AVERAGE([1]안형욱!E25,[1]조위덕!E25,[1]김현옥!E25) -> 88.33333333 | F3: =RANK(E3,$E$3:$E$131,0) -> 1 | G3: 400000 | H3: A
A4: 시나리오 나무 | B4: 인문대학 | C4: 문화콘텐츠학과 | D4: 전공 | E4: =AVERAGE([1]안형욱!E112,[1]조위덕!E112,[1]김현옥!E112) -> 86.66666667 | F4: =RANK(E4,$E$3:$E$131,0) -> 2 | G4: 400000 | H4: A
A5: 낮에 나온 반달 | B5: 사회과학대학 | C5: 심리학과 | D5: 전공 | E5: =AVERAGE([1]안형욱!E58,[1]조위덕!E58,[1]김현옥!E58) -> 86.33333333 | F5: 3 | G5: 400000 | H5: A
A6: 미공 | B6: 공과대학 | C6: 건설시스템공학과 | D6: 전공 | E6: =AVERAGE([1]안형욱!E6,[1]조위덕!E6,[1]김현옥!E6) -> 86 | F6: 4 | G6: 400000 | H6: A
A7: AFIA(Ajou Financial Investment Association) | B7: 경영대학 | C7: 경영학과 | D7: 전공 | E7: =AVERAGE([1]안형욱!E87,[1]조위덕!E87,[1]김현옥!E87) -> 86 | F7: 4 | G7: 400000 | H7: A
A8: A.N.S.I | B8: 소프트웨어융합대학 | C8: 소프트웨어학과 | D8: 전공 | E8: =AVERAGE([1]안형욱!E81,[1]조위덕!E81,[1]김현옥!E81) -> 84.66666667 | F8: 6 | G8: 400000 | H8: A
A9: AFEC (Ajou Fluid Engineers Club) | B9: 공과대학 | C9: 기계공학과 | D9: 전공 | E9: =AVERAGE([1]안형욱!E26,[1]조위덕!E26,[1]김현옥!E26) -> 84 | F9: 7 | G9: 400000 | H9: A
A10: M&S | B10: 공과대학 | C10: 산업공학과 | D10: 전공 | E10: =AVERAGE([1]안형욱!E35,[1]조위덕!E35,[1]김현옥!E35) -> 83.66666667 | F10: 8 | G10: 400000 | H10: A
A11: 증권투자연구회(증권연구회) | B11: 경영대학 | C11: 경영학과 | D11: 전공 | E11: =AVERAGE([1]안형욱!E90,[1]조위덕!E90,[1]김현옥!E90) -> 83.66666667 | F11: 8 | G11: 400000 | H11: A
A12: 아티스 | B12: 인문대학 | C12: 문화콘텐츠학과 | D12: 전공 | E12: =AVERAGE([1]안형욱!E113,[1]조위덕!E113,[1]김현옥!E113) -> 83.66666667 | F12: 8 | G12: 400000 | H12: A
A13: FEPSI(Finance Engineering Programming Study Institute) | B13: 경영대학 | C13: 금융공학과 | D13: 전공 | E13: =AVERAGE([1]안형욱!E93,[1]조위덕!E93,[1]김현옥!E93) -> 83.33333333 | F13: 11 | G13: 400000 | H13: A
A14: FACE (Frontier of Architectural Construction Engineering) | B14: 공과대학 | C14: 건축학과 | D14: 전공 | E14: =AVERAGE([1]안형욱!E13,[1]조위덕!E13,[1]김현옥!E13) -> 83 | F14: 12 | G14: 400000 | H14: A
A15: 시숲 | B15: 인문대학 | C15: 국어국문학과 | D15: 전공 | E15: =AVERAGE([1]안형욱!E109,[1]조위덕!E109,[1]김현옥!E109) -> 82.33333333 | F15: 13 | G15: 400000 | H15: A
A16: 사람과사회 | B16: 사회과학대학 | C16: 심리학과 | D16: 전공 | E16: =AVERAGE([1]안형욱!E60,[1]조위덕!E60,[1]김현옥!E60) -> 81.66666667 | F16: 14 | G16: 400000 | H16: A
A17: X_TAL(크리스탈) | B17: 정보통신대학 | C17: 전자공학과 | D17: 전공 | E17: =AVERAGE([1]안형욱!E128,[1]조위덕!E128,[1]김현옥!E128) -> 81.66666667 | F17: 14 | G17: 400000 | H17: A
A18: 머스타드(MustAD) | B18: 인문대학 | C18: 문화콘텐츠학과 | D18: 전공 | E18: =AVERAGE([1]안형욱!E111,[1]조위덕!E111,[1]김현옥!E111) -> 81 | F18: 16 | G18: 400000 | H18: A
A19: 소금쟁이 | B19: 공과대학 | C19: 기계공학과 | D19: 전공 | E19: =AVERAGE([1]안형욱!E30,[1]조위덕!E30,[1]김현옥!E30) -> 80.33333333 | F19: 17 | G19: 400000 | H19: A
A20: AMON | B20: 경영대학 | C20: 글로벌경영학과 | D20: 전공 | E20: =AVERAGE([1]안형욱!E91,[1]조위덕!E91,[1]김현옥!E91) -> 80.33333333 | F20: 17 | G20: 400000 | H20: A
A21: Les Amateurs(레자마떼) | B21: 인문대학 | C21: 불어불문학과 | D21: 전공 | E21: =AVERAGE([1]안형욱!E114,[1]조위덕!E114,[1]김현옥!E114) -> 80.33333333 | F21: 17 | G21: 400000 | H21: A
A22: ACCA(Ajou Cad Cam Association) | B22: 공과대학 | C22: 기계공학과 | D22: 전공 | E22: =AVERAGE([1]안형욱!E24,[1]조위덕!E24,[1]김현옥!E24) -> 79.33333333 | F22: 20 | G22: 400000 | H22: A
A23: UAJOUS | B23: 공과대학 | C23: 건축학과 | D23: 전공 | E23: =AVERAGE([1]안형욱!E18,[1]조위덕!E18,[1]김현옥!E18) -> 79 | F23: 21 | G23: 400000 | H23: A
A24: 네트로닉스(netrinics) | B24: 정보통신대학 | C24: 전자공학과 | D24: 전공 | E24: =AVERAGE([1]안형욱!E129,[1]조위덕!E129,[1]김현옥!E129) -> 79 | F24: 21 | G24: 400000 | H24: A
A25: 노루막이 | B25: 공과대학 | C25: 기계공학과 | D25: 비전공 | E25: =AVERAGE([1]안형욱!E29,[1]조위덕!E29,[1]김현옥!E29) -> 78.66666667 | F25: 23 | G25: 300000 | H25: A
A26: 심씨네 | B26: 사회과학대학 | C26: 심리학과 | D26: 전공 | E26: =AVERAGE([1]안형욱!E62,[1]조위덕!E62,[1]김현옥!E62) -> 78.33333333 | F26: 24 | G26: 400000 | H26: A
A27: C.O.L(콜) | B27: 인문대학 | C27: 문화콘텐츠학과 | D27: 전공 | E27: =AVERAGE([1]안형욱!E110,[1]조위덕!E110,[1]김현옥!E110) -> 77.66666667 | F27: 25 | G27: 400000 | H27: A
A28: 범인 | B28: 사회과학대학 | C28: 심리학과 | D28: 전공 | E28: =AVERAGE([1]안형욱!E59,[1]조위덕!E59,[1]김현옥!E59) -> 77.33333333 | F28: 26 | G28: 250000 | H28: B
A29: MOSS | B29: 자연과학대학 | C29: 자연과학대학 공통 | D29: 비전공 | E29: =AVERAGE([1]안형욱!E123,[1]조위덕!E123,[1]김현옥!E123) -> 77.33333333 | F29: 26 | G29: 200000 | H29: B
A30: 안한숙 밴드 | B30: 사회과학대학 | C30: 심리학과 | D30: 비전공 | E30: =AVERAGE([1]안형욱!E63,[1]조위덕!E63,[1]김현옥!E63) -> 76.33333333 | F30: 28 | G30: 200000 | H30: B
A31: CONNECT | B31: 소프트웨어융합대학 | C31: 디지털미디어학과 | D31: 전공 | E31: =AVERAGE([1]안형욱!E71,[1]조위덕!E71,[1]김현옥!E71) -> 76.33333333 | F31: 28 | G31: 250000 | H31: B
A32: HANTOR(한터) | B32: 소프트웨어융합대학 | C32: 소프트웨어학과 | D32: 전공 | E32: =AVERAGE([1]안형욱!E83,[1]조위덕!E83,[1]김현옥!E83) -> 76.33333333 | F32: 28 | G32: 250000 | H32: B
A33: AFLO (Ajou Financial Leaders Organization) | B33: 경영대학 | C33: 금융공학과 | D33: 전공 | E33: =AVERAGE([1]안형욱!E92,[1]조위덕!E92,[1]김현옥!E92) -> 76.33333333 | F33: 28 | G33: 250000 | H33: B
A34: ARTISAN(아티젠) | B34: 소프트웨어융합대학 | C34: 디지털미디어학과 | D34: 전공 | E34: =AVERAGE([1]안형욱!E74,[1]조위덕!E74,[1]김현옥!E74) -> 76 | F34: 32 | G34: 250000 | H34: B
A35: DP&E | B35: 공과대학 | C35: 건축학과 | D35: 전공 | E35: =AVERAGE([1]안형욱!E11,[1]조위덕!E11,[1]김현옥!E11) -> 75.33333333 | F35: 33 | G35: 250000 | H35: B
A36: 늑대야 | B36: 자연과학대학 | C36: 자연과학대학 공통 | D36: 비전공 | E36: =AVERAGE([1]안형욱!E124,[1]조위덕!E124,[1]김현옥!E124) -> 74.66666667 | F36: 34 | G36: 200000 | H36: B
A37: 창건 | B37: 공과대학 | C37: 건설시스템공학과 | D37: 전공 | E37: =AVERAGE([1]안형욱!E9,[1]조위덕!E9,[1]김현옥!E9) -> 74 | F37: 35 | G37: 250000 | H37: B
A38: B-Cube(Broad Business Builder) | B38: 경영대학 | C38: e-비즈니스학과 | D38: 전공 | E38: =AVERAGE([1]안형욱!E85,[1]조위덕!E85,[1]김현옥!E85) -> 74 | F38: 35 | G38: 250000 | H38: B
A39: 고래 | B39: 소프트웨어융합대학 | C39: 디지털미디어학과 | D39: 전공 | E39: =AVERAGE([1]안형욱!E72,[1]조위덕!E72,[1]김현옥!E72) -> 73 | F39: 37 | G39: 250000 | H39: B
A40: 파린이 | B40: 공과대학 | C40: 산업공학과 | D40: 전공 | E40: =AVERAGE([1]안형욱!E37,[1]조위덕!E37,[1]김현옥!E37) -> 72.66666667 | F40: 38 | G40: 250000 | H40: B
A41: 자비지 | B41: 공과대학 | C41: 환경안전공학과 | D41: 비전공 | E41: =AVERAGE([1]안형욱!E48,[1]조위덕!E48,[1]김현옥!E48) -> 72.66666667 | F41: 38 | G41: 200000 | H41: B
A42: 반딧불이 | B42: 사회과학대학 | C42: 사회학과 | D42: 전공 | E42: =AVERAGE([1]안형욱!E57,[1]조위덕!E57,[1]김현옥!E57) -> 72 | F42: 40 | G42: 250000 | H42: B
A43: RPM | B43: 경영대학 | C43: 경영학과 | D43: 전공 | E43: =AVERAGE([1]안형욱!E88,[1]조위덕!E88,[1]김현옥!E88) -> 72 | F43: 40 | G43: 250000 | H43: B
A44: A-bit(에이비트) | B44: 공과대학 | C44: 건축학과 | D44: 전공 | E44: =AVERAGE([1]안형욱!E10,[1]조위덕!E10,[1]김현옥!E10) -> 71.66666667 | F44: 42 | G44: 250000 | H44: B
A45: 더사리 | B45: 인문대학 | C45: 영어영문학과 | D45: 비전공 | E45: =AVERAGE([1]안형욱!E117,[1]조위덕!E117,[1]김현옥!E117) -> 71.66666667 | F45: 42 | G45: 200000 | H45: B
A46: 터지기 | B46: 공과대학 | C46: 환경안전공학과 | D46: 전공 | E46: =AVERAGE([1]안형욱!E50,[1]조위덕!E50,[1]김현옥!E50) -> 71 | F46: 44 | G46: 250000 | H46: B
A47: 하늘음표 | B47: 정보통신대학 | C47: 전자공학과 | D47: 비전공 | E47: =AVERAGE([1]안형욱!E133,[1]조위덕!E133,[1]김현옥!E133) -> 70.66666667 | F47: 45 | G47: 200000 | H47: B
A48: ATFC(Ajou Transportaion Football Club) | B48: 공과대학 | C48: 교통시스템공학과 | D48: 비전공 | E48: =AVERAGE([1]안형욱!E19,[1]조위덕!E19,[1]김현옥!E19) -> 70.33333333 | F48: 46 | G48: 200000 | H48: B
A49: 운시공 | B49: 공과대학 | C49: 융합시스템공학과 | D49: 비전공 | E49: =AVERAGE([1]안형욱!E41,[1]조위덕!E41,[1]김현옥!E41) -> 68.66666667 | F49: 47 | G49: 200000 | H49: B
A50: 아약스(AYACS) | B50: 약학대학 | C50: 약학과 | D50: 비전공 | E50: =AVERAGE([1]안형욱!E95,[1]조위덕!E95,[1]김현옥!E95) -> 68 | F50: 48 | G50: 200000 | H50: B
A51: NUOVO | B51: 소프트웨어융합대학 | C51: 인공지능융합학과 | D51: 전공 | E51: =AVERAGE([1]안형욱!E84,[1]조위덕!E84,[1]김현옥!E84) -> 67.66666667 | F51: 49 | G51: 250000 | H51: B
A52: 샘N샘(샘앤샘) | B52: 인문대학 | C52: 영어영문학과 | D52: 전공 | E52: =AVERAGE([1]안형욱!E118,[1]조위덕!E118,[1]김현옥!E118) -> 67.66666667 | F52: 49 | G52: 250000 | H52: B
A53: DoBE | B53: 자연과학대학 | C53: 생명과학과 | D53: 전공 | E53: =AVERAGE([1]안형욱!E120,[1]조위덕!E120,[1]김현옥!E120) -> 66.66666667 | F53: 51 | G53: 250000 | H53: B
A54: COMP D&A | B54: 정보통신대학 | C54: 전자공학과 | D54: 전공 | E54: =AVERAGE([1]안형욱!E127,[1]조위덕!E127,[1]김현옥!E127) -> 66.66666667 | F54: 51 | G54: 250000 | H54: B
A55: Studio I.S.M. | B55: 공과대학 | C55: 건축학과 | D55: 전공 | E55: =AVERAGE([1]안형욱!E14,[1]조위덕!E14,[1]김현옥!E14) -> 66.33333333 | F55: 53 | G55: 250000 | H55: B
A56: DIKI(d2i) | B56: 경영대학 | C56: e-비즈니스학과 | D56: 전공 | E56: =AVERAGE([1]안형욱!E86,[1]조위덕!E86,[1]김현옥!E86) -> 66.33333333 | F56: 53 | G56: 250000 | H56: B
A57: 공간모음 | B57: 공과대학 | C57: 건축학과 | D57: 전공 | E57: =AVERAGE([1]안형욱!E15,[1]조위덕!E15,[1]김현옥!E15) -> 66 | F57: 55 | G57: 250000 | H57: B
A58: 몸부림 | B58: 사회과학대학 | C58: 경제학과 | D58: 전공 | E58: =AVERAGE([1]안형욱!E53,[1]조위덕!E53,[1]김현옥!E53) -> 65.66666667 | F58: 56 | G58: 250000 | H58: B
A59: WAI(Who Am I) | B59: 공과대학 | C59: 산업공학과 | D59: 전공 | E59: =AVERAGE([1]안형욱!E31,[1]조위덕!E31,[1]김현옥!E31) -> 65.33333333 | F59: 57 | G59: 250000 | H59: B
A60: 아토스 | B60: 공과대학 | C60: 건설시스템공학과 | D60: 비전공 | E60: =AVERAGE([1]안형욱!E7,[1]조위덕!E7,[1]김현옥!E7) -> 64 | F60: 58 | G60: 200000 | H60: B
A61: 이큐빅(E-CUBIC) | B61: 공과대학 | C61: 건축학과 | D61: 전공 | E61: =AVERAGE([1]안형욱!E17,[1]조위덕!E17,[1]김현옥!E17) -> 64 | F61: 58 | G61: 250000 | H61: B
A62: DSA | B62: 공과대학 | C62: 건축학과 | D62: 전공 | E62: =AVERAGE([1]안형욱!E12,[1]조위덕!E12,[1]김현옥!E12) -> 63.33333333 | F62: 60 | G62: 250000 | H62: B
A63: FC 빽태클 | B63: 공과대학 | C63: 응용화학생명공학과 | D63: 비전공 | E63: =AVERAGE([1]안형욱!E43,[1]조위덕!E43,[1]김현옥!E43) -> 62.33333333 | F63: 61 | G63: 200000 | H63: B
A64: 케이아스 (CHAOS) | B64: 소프트웨어융합대학 | C64: 소프트웨어융합대학 공통 | D64: 비전공 | E64: =AVERAGE([1]안형욱!E79,[1]조위덕!E79,[1]김현옥!E79) -> 62.33333333 | F64: 61 | G64: 200000 | H64: B
A65: 가치 | B65: 공과대학 | C65: 신소재공학과 | D65: 전공 | E65: =AVERAGE([1]안형욱!E40,[1]조위덕!E40,[1]김현옥!E40) -> 62 | F65: 63 | G65: 250000 | H65: B
A66: 심볼 | B66: 사회과학대학 | C66: 심리학과 | D66: 비전공 | E66: =AVERAGE([1]안형욱!E61,[1]조위덕!E61,[1]김현옥!E61) -> 62 | F66: 63 | G66: 200000 | H66: B
A67: TML (Total Multimedia Lovers) | B67: 소프트웨어융합대학 | C67: 소프트웨어융합대학 공통 | D67: 전공 | E67: =AVERAGE([1]안형욱!E80,[1]조위덕!E80,[1]김현옥!E80) -> 62 | F67: 63 | G67: 100000 | H67: C
A68: 컨트롤 | B68: 공과대학 | C68: 화학공학과 | D68: 비전공 | E68: =AVERAGE([1]안형욱!E46,[1]조위덕!E46,[1]김현옥!E46) -> 61.66666667 | F68: =RANK(E68,$E$3:$E$131,0) -> 66 | G68: 100000 | H68: C
A69: PASS | B69: 사회과학대학 | C69: 행정학과 | D69: 비전공 | E69: =AVERAGE([1]안형욱!E69,[1]조위덕!E69,[1]김현옥!E69) -> 61.33333333 | F69: 67 | G69: 100000 | H69: C
A70: A.R.A.M. (Advanced Research of Ajou Material engineers) | B70: 공과대학 | C70: 신소재공학과 | D70: 전공 | E70: =AVERAGE([1]안형욱!E38,[1]조위덕!E38,[1]김현옥!E38) -> 61 | F70: 68 | G70: 100000 | H70: C
A71: 율스트릿 | B71: 사회과학대학 | C71: 경제학과 | D71: 전공 | E71: =AVERAGE([1]안형욱!E54,[1]조위덕!E54,[1]김현옥!E54) -> 61 | F71: 68 | G71: 100000 | H71: C
A72: 민중사랑 (민사) | B72: 사회과학대학 | C72: 정치외교학과 | D72: 전공 | E72: =AVERAGE([1]안형욱!E66,[1]조위덕!E66,[1]김현옥!E66) -> 59 | F72: 70 | G72: 100000 | H72: C
A73: 비더비즈 | B73: 경영대학 | C73: 경영학과 | D73: 비전공 | E73: =AVERAGE([1]안형욱!E89,[1]조위덕!E89,[1]김현옥!E89) -> 58.33333333 | F73: 71 | G73: 100000 | H73: C
A74: ASECON (Auto Security Control) | B74: 공과대학 | C74: 산업공학과 | D74: 전공 | E74: =AVERAGE([1]안형욱!E33,[1]조위덕!E33,[1]김현옥!E33) -> 58 | F74: 72 | G74: 100000 | H74: C
A75: 바로서기 | B75: 공과대학 | C75: 건축학과 | D75: 전공 | E75: =AVERAGE([1]안형욱!E16,[1]조위덕!E16,[1]김현옥!E16) -> 57.66666667 | F75: 73 | G75: 100000 | H75: C
A76: 소리바람 | B76: 공과대학 | C76: 응용화학생명공학과 | D76: 비전공 | E76: =AVERAGE([1]안형욱!E44,[1]조위덕!E44,[1]김현옥!E44) -> 57.33333333 | F76: 74 | G76: 100000 | H76: C
A77: FC바투 | B77: 인문대학 | C77: 국어국문학과 | D77: 비전공 | E77: =AVERAGE([1]안형욱!E106,[1]조위덕!E106,[1]김현옥!E106) -> 57.33333333 | F77: 74 | G77: 100000 | H77: C
A78: fcc (신소재공학과 축구소학회) | B78: 공과대학 | C78: 신소재공학과 | D78: 비전공 | E78: =AVERAGE([1]안형욱!E39,[1]조위덕!E39,[1]김현옥!E39) -> 57 | F78: 76 | G78: 100000 | H78: C
A79: 아로마틱 | B79: 공과대학 | C79: 응용화학생명공학과 | D79: 비전공 | E79: =AVERAGE([1]안형욱!E45,[1]조위덕!E45,[1]김현옥!E45) -> 57 | F79: 76 | G79: 100000 | H79: C
A80: 역사기행반 | B80: 인문대학 | C80: 사학과 | D80: 전공 | E80: =AVERAGE([1]안형욱!E116,[1]조위덕!E116,[1]김현옥!E116) -> 57 | F80: 76 | G80: 100000 | H80: C
A81: 싸커노믹스 | B81: 사회과학대학 | C81: 경제학과 | D81: 비전공 | E81: =AVERAGE([1]안형욱!E55,[1]조위덕!E55,[1]김현옥!E55) -> 56.66666667 | F81: 79 | G81: 100000 | H81: C
A82: Whois | B82: 소프트웨어융합대학 | C82: 사이버보안학과 | D82: 전공 | E82: =AVERAGE([1]안형욱!E77,[1]조위덕!E77,[1]김현옥!E77) -> 56.66666667 | F82: 79 | G82: 100000 | H82: C
A83: OFFSIDE | B83: 공과대학 | C83: 기계공학과 | D83: 비전공 | E83: =AVERAGE([1]안형욱!E28,[1]조위덕!E28,[1]김현옥!E28) -> 55.66666667 | F83: 81 | G83: 100000 | H83: C
A84: 구사모 | B84: 약학대학 | C84: 약학과 | D84: 비전공 | E84: =AVERAGE([1]안형욱!E103,[1]조위덕!E103,[1]김현옥!E103) -> 55.66666667 | F84: 81 | G84: 100000 | H84: C
A85: 아주콕 | B85: 약학대학 | C85: 약학과 | D85: 비전공 | E85: =AVERAGE([1]안형욱!E101,[1]조위덕!E101,[1]김현옥!E101) -> 55.33333333 | F85: 83 | G85: 100000 | H85: C
A86: 독독회 | B86: 인문대학 | C86: 사학과 | D86: 전공 | E86: =AVERAGE([1]안형욱!E115,[1]조위덕!E115,[1]김현옥!E115) -> 55.33333333 | F86: 83 | G86: 100000 | H86: C
A87: HaMer | B87: 소프트웨어융합대학 | C87: 사이버보안학과 | D87: 전공 | E87: =AVERAGE([1]안형욱!E76,[1]조위덕!E76,[1]김현옥!E76) -> 54.66666667 | F87: 85 | G87: 100000 | H87: C
A88: B.E.S.T | B88: 자연과학대학 | C88: 생명과학과 | D88: 전공 | E88: =AVERAGE([1]안형욱!E119,[1]조위덕!E119,[1]김현옥!E119) -> 54.66666667 | F88: 85 | G88: 100000 | H88: C
A89: 지구방위대 | B89: 공과대학 | C89: 환경안전공학과 | D89: 비전공 | E89: =AVERAGE([1]안형욱!E49,[1]조위덕!E49,[1]김현옥!E49) -> 54.33333333 | F89: 87 | G89: 100000 | H89: C
A90: Alchemy | B90: 자연과학대학 | C90: 화학과 | D90: 전공 | E90: =AVERAGE([1]안형욱!E125,[1]조위덕!E125,[1]김현옥!E125) -> 54 | F90: 88 | G90: 100000 | H90: C
A91: 브레인스톰(BrainStrom) | B91: 소프트웨어융합대학 | C91: 디지털미디어학과 | D91: 전공 | E91: =AVERAGE([1]안형욱!E73,[1]조위덕!E73,[1]김현옥!E73) -> 53.66666667 | F91: 89 | G91: 100000 | H91: C
A92: 볼랜드(Balland) | B92: 소프트웨어융합대학 | C92: 소프트웨어융합대학 공통 | D92: 비전공 | E92: =AVERAGE([1]안형욱!E78,[1]조위덕!E78,[1]김현옥!E78) -> 53.66666667 | F92: 89 | G92: 100000 | H92: C
A93: MiC(Mathematics in Coding) | B93: 자연과학대학 | C93: 수학과 | D93: 전공 | E93: =AVERAGE([1]안형욱!E122,[1]조위덕!E122,[1]김현옥!E122) -> 53.66666667 | F93: 89 | G93: 100000 | H93: C
A94: 카리스마 | B94: 사회과학대학 | C94: 정치외교학과 | D94: 비전공 | E94: =AVERAGE([1]안형욱!E67,[1]조위덕!E67,[1]김현옥!E67) -> 53.33333333 | F94: 92 | G94: 100000 | H94: C
A95: 새 | B95: 정보통신대학 | C95: 전자공학과 | D95: 비전공 | E95: =AVERAGE([1]안형욱!E130,[1]조위덕!E130,[1]김현옥!E130) -> 52.66666667 | F95: 93 | G95: 100000 | H95: C
A96: 세미콜론 | B96: 소프트웨어융합대학 | C96: 소프트웨어학과 | D96: 비전공 | E96: =AVERAGE([1]안형욱!E82,[1]조위덕!E82,[1]김현옥!E82) -> 52 | F96: 94 | G96: 100000 | H96: C
A97: 루카스(LUKAS Band) | B97: 사회과학대학 | C97: 행정학과 | D97: 비전공 | E97: =AVERAGE([1]안형욱!E68,[1]조위덕!E68,[1]김현옥!E68) -> 51.66666667 | F97: 95 | G97: 100000 | H97: C
A98: Covalent | B98: 자연과학대학 | C98: 화학과 | D98: 전공 | E98: =AVERAGE([1]안형욱!E126,[1]조위덕!E126,[1]김현옥!E126) -> 51.66666667 | F98: 95 | G98: 100000 | H98: C
A99: HISC(히스크) | B99: 인문대학 | C99: 국어국문학과 | D99: 전공 | E99: =AVERAGE([1]안형욱!E107,[1]조위덕!E107,[1]김현옥!E107) -> 51.33333333 | F99: 97 | G99: 100000 | H99: C
A100: 오반칙 | B100: 정보통신대학 | C100: 전자공학과 | D100: 비전공 | E100: =AVERAGE([1]안형욱!E131,[1]조위덕!E131,[1]김현옥!E131) -> 51.33333333 | F100: 97 | G100: 100000 | H100: C
A101: 일레븐 | B101: 정보통신대학 | C101: 전자공학과 | D101: 비전공 | E101: =AVERAGE([1]안형욱!E132,[1]조위덕!E132,[1]김현옥!E132) -> 51 | F101: 99 | G101: 100000 | H101: C
A102: 터뷸런스 | B102: 공과대학 | C102: 화학공학과 | D102: 비전공 | E102: =AVERAGE([1]안형욱!E47,[1]조위덕!E47,[1]김현옥!E47) -> 50.66666667 | F102: 100 | G102: 100000 | H102: C
A103: 일본연구회 | B103: 국제학부 | C103: 국제학부 | D103: 전공 | E103: =AVERAGE([1]안형욱!E51,[1]조위덕!E51,[1]김현옥!E51) -> 50.66666667 | F103: 100 | G103: 100000 | H103: C
A104: 나들목 | B104: 인문대학 | C104: 국어국문학과 | D104: 전공 | E104: =AVERAGE([1]안형욱!E108,[1]조위덕!E108,[1]김현옥!E108) -> 50.33333333 | F104: 102 | G104: 100000 | H104: C
A105: B.C. Fullerene | B105: 공과대학 | C105: 응용화학생명공학과 | D105: 비전공 | E105: =AVERAGE([1]안형욱!E42,[1]조위덕!E42,[1]김현옥!E42) -> 50 | F105: 103 | G105: 100000 | H105: C
A106: APC(Ajou pharm Photo Club) | B106: 약학대학 | C106: 약학과 | D106: 비전공 | E106: =AVERAGE([1]안형욱!E94,[1]조위덕!E94,[1]김현옥!E94) -> 50 | F106: 103 | G106: 100000 | H106: C
A107: FC미디어 | B107: 소프트웨어융합대학 | C107: 디지털미디어학과 | D107: 비전공 | E107: =AVERAGE([1]안형욱!E75,[1]조위덕!E75,[1]김현옥!E75) -> 49.66666667 | F107: 105 | G107: 100000 | H107: C
A108: 아레테(ARETE) | B108: 사회과학대학 | C108: 정치외교학과 | D108: 비전공 | E108: =AVERAGE([1]안형욱!E64,[1]조위덕!E64,[1]김현옥!E64) -> 49.33333333 | F108: 106 | G108: 100000 | H108: C
A109: Cheer-Up(취얼업) | B109: 공과대학 | C109: 교통시스템공학과 | D109: 전공 | E109: =AVERAGE([1]안형욱!E21,[1]조위덕!E21,[1]김현옥!E21) -> 49 | F109: 107 | G109: 100000 | H109: C
A110: 아콘(Archon) | B110: 공과대학 | C110: 산업공학과 | D110: 전공 | E110: =AVERAGE([1]안형욱!E32,[1]조위덕!E32,[1]김현옥!E32) -> 48.66666667 | F110: 108 | G110: 100000 | H110: C
A111: 가람지기 | B111: 공과대학 | C111: 건설시스템공학과 | D111: 전공 | E111: =AVERAGE([1]안형욱!E5,[1]조위덕!E5,[1]김현옥!E5) -> 48.33333333 | F111: 109 | G111: 100000 | H111: C
A112: 적토마 | B112: 공과대학 | C112: 건설시스템공학과 | D112: 비전공 | E112: =AVERAGE([1]안형욱!E8,[1]조위덕!E8,[1]김현옥!E8) -> 48.33333333 | F112: 109 | G112: 100000 | H112: C
A113: 물류소학회(LIST21) | B113: 공과대학 | C113: 산업공학과 | D113: 전공 | E113: =AVERAGE([1]안형욱!E36,[1]조위덕!E36,[1]김현옥!E36) -> 47.66666667 | F113: 111 | G113: 100000 | H113: C
A114: 팝크루 | B114: 약학대학 | C114: 약학과 | D114: 비전공 | E114: =AVERAGE([1]안형욱!E97,[1]조위덕!E97,[1]김현옥!E97) -> 47.33333333 | F114: 112 | G114: 100000 | H114: C
A115: SACT(삭트 S.A.C.T) | B115: 사회과학대학 | C115: 정치외교학과 | D115: 비전공 | E115: =AVERAGE([1]안형욱!E65,[1]조위덕!E65,[1]김현옥!E65) -> 45.66666667 | F115: 113 | G115: 100000 | H115: C
A116: ATs (Ajou Transportation Study) | B116: 공과대학 | C116: 교통시스템공학과 | D116: 전공 | E116: =AVERAGE([1]안형욱!E20,[1]조위덕!E20,[1]김현옥!E20) -> 45.33333333 | F116: 114 | G116: 100000 | H116: C
A117: FC봄봄 | B117: 소프트웨어융합대학 | C117: 국방디지털융합학과 | D117: 비전공 | E117: =AVERAGE([1]안형욱!E70,[1]조위덕!E70,[1]김현옥!E70) -> 45.33333333 | F117: 114 | G117: 100000 | H117: C
A118: MathLab | B118: 자연과학대학 | C118: 수학과 | D118: 전공 | E118: =AVERAGE([1]안형욱!E121,[1]조위덕!E121,[1]김현옥!E121) -> 45 | F118: 116 | G118: 100000 | H118: C
A119: 청춘책방 | B119: 약학대학 | C119: 약학과 | D119: 전공 | E119: =AVERAGE([1]안형욱!E96,[1]조위덕!E96,[1]김현옥!E96) -> 44.66666667 | F119: 117 | G119: 100000 | H119: C
A120: Ywe | B120: 약학대학 | C120: 약학과 | D120: 비전공 | E120: =AVERAGE([1]안형욱!E105,[1]조위덕!E105,[1]김현옥!E105) -> 44.66666667 | F120: 117 | G120: 100000 | H120: C
A121: 아뮤너스 | B121: 약학대학 | C121: 약학과 | D121: 전공 | E121: =AVERAGE([1]안형욱!E102,[1]조위덕!E102,[1]김현옥!E102) -> 44 | F121: 119 | G121: 100000 | H121: C
A122: 야키스 | B122: 약학대학 | C122: 약학과 | D122: 비전공 | E122: =AVERAGE([1]안형욱!E99,[1]조위덕!E99,[1]김현옥!E99) -> 43.33333333 | F122: 120 | G122: 100000 | H122: C
A123: 중국연구회 | B123: 국제학부 | C123: 국제학부 | D123: 전공 | E123: =AVERAGE([1]안형욱!E52,[1]조위덕!E52,[1]김현옥!E52) -> 43 | F123: 121 | G123: 100000 | H123: C
A124: FC 프라임 | B124: 공과대학 | C124: 산업공학과 | D124: 비전공 | E124: =AVERAGE([1]안형욱!E34,[1]조위덕!E34,[1]김현옥!E34) -> 42 | F124: 122 | G124: 100000 | H124: C
A125: 약오름 | B125: 약학대학 | C125: 약학과 | D125: 비전공 | E125: =AVERAGE([1]안형욱!E98,[1]조위덕!E98,[1]김현옥!E98) -> 41 | F125: 123 | G125: 100000 | H125: C
A126: 맛동 | B126: 약학대학 | C126: 약학과 | D126: 비전공 | E126: =AVERAGE([1]안형욱!E104,[1]조위덕!E104,[1]김현옥!E104) -> 38.66666667 | F126: 124 | G126: 100000 | H126: C
A127: FLY HIGH | B127: 공과대학 | C127: 교통시스템공학과 | D127: 비전공 | E127: =AVERAGE([1]안형욱!E22,[1]조위덕!E22,[1]김현옥!E22) -> 38 | F127: 125 | G127: 100000 | H127: C
A128: 아벨 | B128: 약학대학 | C128: 약학과 | D128: 전공 | E128: =AVERAGE([1]안형욱!E100,[1]조위덕!E100,[1]김현옥!E100) -> 36.66666667 | F128: 126 | G128: 100000 | H128: C
A129: 씨알의 소리 | B129: 사회과학대학 | C129: 경제학과 | D129: 비전공 | E129: =AVERAGE([1]안형욱!E56,[1]조위덕!E56,[1]김현옥!E56) -> 35.33333333 | F129: 127 | G129: 100000 | H129: C
A130: A-TRIZ(Ajou-Teoriya Resheniya Izobretatelskikh Zadatch) | B130: 공과대학 | C130: 기계공학과 | D130: 전공 | E130: =AVERAGE([1]안형욱!E27,[1]조위덕!E27,[1]김현옥!E27) -> 25.33333333 | F130: 128 | G130: 100000 | H130: C
A131: TuF(Transportation Under Friendship) | B131: 공과대학 | C131: 교통시스템공학과 | D131: 전공 | E131: =AVERAGE([1]안형욱!E23,[1]조위덕!E23,[1]김현옥!E23) -> 7.666666667 | F131: 129 | G131: 100000 | H131: C

Sheet 2023 소학회 현황
A1: ▣ 2023학년도 소학회 등록현황
A2: 소속 | B2: 번호 | C2: 소학회명 | D2: 소속대학 | E2: 소속학과 | F2: 전공 여부 | G2: 회원수 | H2: 창립일 | I2: 설립목적 | J2: 주요활동내용 | K2: 지도교수 | L2: 대표자 | M2: 담당자 | N2: 연락처
A3: 기존 | B3: 1 | C3: AFIA(Ajou Financial Investment Association) | D3: 경영대학 | E3: 경영학과 | F3: 전공 | G3: 33 | H3: 92.09.03 | I3: 가치투자 철학과 리서치 역량을 기반으로 자산운용을 통해 수익창출을 목표로 하는 투자신탁회사를 지향하여 이 부분을 여러 활동을 통해 실현하고자 합니다. | J3: 리서치 작성 및 투자 | K3: Shu-Feng Wang(왕슈펑) | L3: 김기영 | M3: 장선화 | N3: 3623 | O3: 1
A4: 기존 | B4: 2 | C4: AFLO (Ajou Financial Leaders Organization) | D4: 경영대학 | E4: 금융공학과 | F4: 전공 | G4: 34 | H4: 05.10.21 | I4: 실제 금융 시장에 적용할 수 있는 이론 혹은 전략을 공부 및 연구하는 소학회입니다. | J4: 금융 경제 현상 공부, 응용 및 연구 | K4: 장지원 | L4: 최민권 | M4: 장선화 | N4: 3623
A5: 기존 | B5: 3 | C5: AMON | D5: 경영대학 | E5: 글로벌경영학과 | F5: 전공 | G5: 8 | H5: 18.03.20 | I5: ‘참여형 학습모델’로서 시간적 여유가 부족한 재직자들의 학습을 지원하고, 학습 뿐 아니라 대학생활 적응에 도움을 주는 컨텐츠도 제공하는 스마트기기에 최적화된 자체 학습콘텐츠 개발 조직입니다. | J5: 학습 지원 및 콘텐츠 개발 | K5: 윤천석(Chun Suk Yoon) | L5: 김정아 | M5: 장선화 | N5: 3623
A6: 기존 | B6: 4 | C6: B-Cube(Broad Business Builder) | D6: 경영대학 | E6: e-비즈니스학과 | F6: 전공 | G6: 35 | H6: 16.01.08. | I6: 아이디어를 기획하고 구현 및 데이터 분석 등 다양한 활동을 하는 소학회이다 | J6: IT 아이디어 기획 및 구현 | K6: 강주영 | L6: 김혜성 | M6: 장선화 | N6: 3623
A7: 기존 | B7: 5 | C7: DIKI(d2i) | D7: 경영대학 | E7: e-비즈니스학과 | F7: 전공 | G7: 35 | H7: 08.10.01. | I7: Data 분석을 통한 Information, Knowledge 및 Intelligence 도출하는 데이터 마이닝 연구 소학회입니다 | J7: 데이터 마이닝 연구 | K7: 강민형 | L7: 홍민지 | M7: 장선화 | N7: 3623
A8: 기존 | B8: 6 | C8: FEPSI(Finance Engineering Programming Study Institute) | D8: 경영대학 | E8: 금융공학과 | F8: 전공 | G8: 20 | H8: 13.03.09. | I8: FEPSI는 금융공학을 공부하고 프로그래밍을 함께 공부하는 소학회로, 학부생들이 기초적인 프로그래밍 언어들의 문법을 공부하고 데이터 분석, 인공지능, 금융시장 모델링을 위한 프로그래밍 역량을 향상시키는 것을 목표로 합니다 | J8: 데이터 분석, 인공지능, 코딩 테스트 | K8: 민찬호 | L8: 유대명 | M8: 장선화 | N8: 3623
A9: 기존 | B9: 7 | C9: RPM | D9: 경영대학 | E9: 경영학과 | F9: 전공 | G9: 55 | H9: 93.03.10. | I9: RPM(The Revolutionary People of Marketing)은 마케팅을 연구하는 혁신적인 사람들이 모여 있는 경영대학 마케팅 소학회입니다. | J9: 마케팅 실무능력 향상 | K9: 권경난 | L9: 이예슬 | M9: 장선화 | N9: 3623
A10: 기존 | B10: 8 | C10: 비더비즈 | D10: 경영대학 | E10: 경영학과 | F10: 비전공 | G10: 63 | H10: 13.09.01. | I10: 비더비즈는 2013년도에 설립된 경영 대학 축구 소학회로, 축구 경기를 통한 건강한 대학 생활과 경영대 학생 간의 친목 도모를 위해서 설립되었다. | J10: 경기를 통한 건강증진, 친목 도모 | K10: 장병윤 | L10: 이준희 | M10: 장선화 | N10: 3623
A11: 기존 | B11: 9 | C11: 증권투자연구회(증권연구회) | D11: 경영대학 | E11: 경영학과 | F11: 전공 | G11: 172 | H11: 88.04.05. | I11: 증권투자연구회는 1987년에 설립되어 2022년에 공식적으로 리뉴얼이 이루어진 아주대학교 최대 투자소학회입니다. | J11: 투자 강의, 자산 응용 교육 | K11: 이준엽 | L11: 신원준 | M11: 장선화 | N11: 3623
A12: 신규 | B12: 10 | C12: 골든 크로스 | D12: 경영대학 | E12: 금융공학과 | F12: 비전공 | G12: 40 | H12: 22.01.21 | I12: 골든 크로스 소학회는 금융공학과 축구 소학회로 학우들과 함께 즐겁게 축구 활동을 주기적으로 함으로써 체력과 서로의 유대감을 증진 시켜줄 수 있습니다. 또한 축구라는 매개를 통해 선후배 간의 화합을 도모할 수 있는 소학회입니다. | J12: 경기를 통한 건강증진, 친목 도모 | K12: 원동철 | L12: 이형준 | M12: 장선화 | N12: 3623
A13: 기존 | B13: 11 | C13: B.C. Fullerene | D13: 공과대학 | E13: 응용화학생명공학과 | F13: 비전공 | G13: 99 | H13: 05.05.20 | I13: 농구를 통한 친목 도모 | J13: 농구 | K13: 김상욱 | L13: 김지수 | M13: 최현아 | N13: 2393
A14: 기존 | B14: 12 | C14: FC 빽태클 | D14: 공과대학 | E14: 응용화학생명공학과 | F14: 비전공 | G14: 89 | H14: 05.03.02 | I14: 축구를 통한 친목 도모 | J14: 축구 | K14: 이평천 | L14: 김경민 | M14: 최현아 | N14: 2393
A15: 기존 | B15: 13 | C15: 소리바람 | D15: 공과대학 | E15: 응용화학생명공학과 | F15: 비전공 | G15: 118 | H15: 91.03.02 | I15: 음악을 통한 친목도모 | J15: 정기공연 | K15: 김욱 | L15: 김현영 | M15: 최현아 | N15: 2393
A16: 기존 | B16: 14 | C16: 아로마틱 | D16: 공과대학 | E16: 응용화학생명공학과 | F16: 비전공 | G16: 91 | H16: 95.03.06 | I16: 음악을 통한 친목도모 | J16: 정기공연, 창립제 | K16: 박현지 | L16: 윤하민 | M16: 최현아 | N16: 2393
A17: 기존 | B17: 15 | C17: ACCA(Ajou Cad Cam Association) | D17: 공과대학 | E17: 기계공학과 | F17: 전공 | G17: 65 | H17: 98.3.2 | I17: 강의와 더불어 기계공학에 대한 이해를 높임 | J17: 작품전시회, 교내 경진대회 참가 | K17: 홍민성 | L17: 좌명현 | M17: 오정은 | N17: 2336
A18: 기존 | B18: 16 | C18: A-FA(Ajou Future Automobile) | D18: 공과대학 | E18: 기계공학과 | F18: 전공 | G18: 150 | H18: 93.8.20 | I18: 자동차 설계에 관한 지식습득 | J18: 자작차 대회참가, 세미나 | K18: 전용호 | L18: 김대성 | M18: 오정은 | N18: 2336
A19: 기존 | B19: 17 | C19: AFEC (Ajou Fluid Engineers Club) | D19: 공과대학 | E19: 기계공학과 | F19: 전공 | G19: 150 | H19: 03.9.20 | I19: R/C 비행기 제작 | J19: R/C 비행기 연구및대회참가 | K19: 이정일 | L19: 정민용 | M19: 오정은 | N19: 2336
A20: 기존 | B20: 18 | C20: A-TRIZ(Ajou-Teoriya Resheniya Izobretatelskikh Zadatch) | D20: 공과대학 | E20: 기계공학과 | F20: 전공 | G20: 18 | H20: 06.9.4 | I20: TRIZ이론을 바탕으로 연구 | J20: 세미나, 공모전 | K20: 전용호 | L20: 김문수 | M20: 오정은 | N20: 2336
A21: 기존 | B21: 19 | C21: OFFSIDE | D21: 공과대학 | E21: 기계공학과 | F21: 비전공 | G21: 87 | H21: 00.3.1 | I21: 기계인 단합 및 체력증진 도모 | J21: 친선경기 | K21: 박진일 | L21: 이동훈 | M21: 오정은 | N21: 2336
A22: 기존 | B22: 20 | C22: 노루막이 | D22: 공과대학 | E22: 기계공학과 | F22: 비전공 | G22: 119 | H22: 10.8.20 | I22: 공학도로서 정보전달력과 표현력 향상 | J22: 본교토론대회참가 | K22: 강대식 | L22: 구동균 | M22: 오정은 | N22: 2336
A23: 기존 | B23: 21 | C23: 소금쟁이 | D23: 공과대학 | E23: 기계공학과 | F23: 전공 | G23: 162 | H23: 93.8.3 | I23: 강의에서 배우는 이론을 실제 제작을 통해 공학에 대한 이해증진 | J23: 세미나, 프로그래밍 연구 | K23: 조병남 | L23: 김상엽 | M23: 오정은 | N23: 2336
A24: 기존 | B24: 22 | C24: A.R.A.M. (Advanced Research of Ajou Material engineers) | D24: 공과대학 | E24: 신소재공학과 | F24: 전공 | G24: 71 | H24: 2001.03.15 | I24: 전공관련 실험적 연구중심활동 | J24: 전공관련토론회 | K24: 조성범 | L24: 이수민 | M24: 공석 | N24: 2382
A25: 기존 | B25: 23 | C25: fcc (신소재공학과 축구소학회) | D25: 공과대학 | E25: 신소재공학과 | F25: 비전공 | G25: 64 | H25: 2012.03.04 | I25: 축구를 통한 친목도모 | J25: 축구 | K25: 조성범 | L25: 탁우석 | M25: 공석 | N25: 2382
A26: 기존 | B26: 24 | C26: 가치 | D26: 공과대학 | E26: 신소재공학과 | F26: 전공 | G26: 64 | H26: 2014.03.14 | I26: 취업 정보 공유 | J26: 기업 조사 및 토론 | K26: 서형탁 | L26: 장원석 | M26: 공석 | N26: 2382
A27: 신규 | B27: 25 | C27: Autopia | D27: 공과대학 | E27: 기계공학과 | F27: 전공 | G27: 38 | H27: 2022.01.03 | I27: 자율주행에 대한 연구 | J27: 자율주행에 대한 연구와 대회 참여 | K27: 송봉섭 | L27: 박종범 | M27: 한효정 | N27: 2974
A28: 기존 | B28: 26 | C28: 운시공 | D28: 공과대학 | E28: 융합시스템공학과 | F28: 비전공 | G28: 49 | H28: 22.03.20 | I28: 다양한 스포츠 활동을 통한 소통 | J28: 축구, 등산, 배드민턴, 볼링 | K28: 양정삼 | L28: 김정인 | M28: 김상영 | N28: 3887
A29: 기존 | B29: 27 | C29: 컨트롤 | D29: 공과대학 | E29: 화학공학과 | F29: 비전공 | G29: 91 | H29: 2018.03.01 | I29: 취업 정보 공유 | J29: 자소서 및 인적성 스터디, 취업정보공유, 자격증 및 어학 스터디 | K29: 심태섭 | L29: 반수현 | M29: 이은주 | N29: 2381
A30: 기존 | B30: 28 | C30: 터뷸런스 | D30: 공과대학 | E30: 화학공학과 | F30: 비전공 | G30: 39 | H30: 1998.03.01 | I30: 운동을 통한 친목도모 | J30: 축구를 통한 체력증진과 친목도모 | K30: 박은덕 | L30: 김준영 | M30: 이은주 | N30: 2381
A31: 신규 | B31: 29 | C31: 트로잔스 | D31: 공과대학 | E31: 화학공학과 | F31: 비전공 | G31: 20 | H31: 2007.03.01 | I31: 운동을 통한 친목도모 | J31: 농구를 통한 체력증진과 친목도모 | K31: 황종국 | L31: 오재혁 | M31: 이은주 | N31: 2381
A32: 신규 | B32: 30 | C32: 플루마 | D32: 공과대학 | E32: 화학공학과 | F32: 비전공 | G32: 27 | H32: 2022.03.23 | I32: 운동을 통한 친목도모 | J32: 배드민턴을 통한 체력증진과 친목도모 | K32: 김석기 | L32: 이지영 | M32: 이은주 | N32: 2381
A33: 기존 | B33: 31 | C33: 가람지기 | D33: 공과대학 | E33: 건설시스템공학과 | F33: 전공 | G33: 67 | H33: 07.03.12 | I33: 수자원공학관련 지식연구 | J33: 세미나 | K33: 이재응 | L33: 김세원 | M33: 이수민 | N33: 1534
A34: 기존 | B34: 32 | C34: 미공 | D34: 공과대학 | E34: 건설시스템공학과 | F34: 전공 | G34: 78 | H34: 88.03.10 | I34: 터널에 대한 이해를 높이고 지반해석에 용이한 프로그램제작 | J34: 정기세미나, 현장견학 | K34: 장일한 | L34: 이성현 | M34: 이수민 | N34: 1534
A35: 기존 | B35: 33 | C35: 아토스 | D35: 공과대학 | E35: 건설시스템공학과 | F35: 비전공 | G35: 36 | H35: 95.05.05 | I35: 운동을 통한 친목도모 | J35: 교내외 농구경기참가 | K35: 김태용 | L35: 문주성 | M35: 이수민 | N35: 1534
A36: 기존 | B36: 34 | C36: 적토마 | D36: 공과대학 | E36: 건설시스템공학과 | F36: 비전공 | G36: 60 | H36: 95.03.01 | I36: 축구를 통한 친목도모 | J36: 정기훈련, 친선경기 | K36: 문성곤 | L36: 이우주 | M36: 이수민 | N36: 1534
A37: 기존 | B37: 35 | C37: 창건 | D37: 공과대학 | E37: 건설시스템공학과 | F37: 전공 | G37: 73 | H37: 88.03.02 | I37: 콘크리트의 효율적인 사용 활용과 구조 해석 | J37: 세미나, 공모전 참여 | K37: 전세진 | L37: 송재민 | M37: 이수민 | N37: 1534
A38: 신규 | B38: 36 | C38: 이노베이션 | D38: 공과대학 | E38: 건설시스템공학과 | F38: 전공 | G38: 9 | H38: 23.03.10 | I38: 첨단 건설기술에 대한 재학생들의 이해도 증가 | J38: 학술, 경진대회 참가 | K38: 문성곤 | L38: 김상형 | M38: 이수민 | N38: 1534
A39: 기존 | B39: 37 | C39: A-bit(에이비트) | D39: 공과대학 | E39: 건축학과 | F39: 전공 | G39: 57 | H39: 2008.03.20 | I39: 디지털 문화 및 도구의 건축적인 이해와 활용 | J39: 연구개발, 세미나, 공모전 참가 | K39: 전유창 | L39: 박시현 | M39: 최애정 | N39: 1530
A40: 기존 | B40: 38 | C40: DP&E | D40: 공과대학 | E40: 건축학과 | F40: 전공 | G40: 141 | H40: 2018.03.05 | I40: 건축 답사 및 건축물 사진 작품 활동 | J40: 답사, 세미나 | K40: 김도식 | L40: 홍지형 | M40: 최애정 | N40: 1530
A41: 기존 | B41: 39 | C41: DSA | D41: 공과대학 | E41: 건축학과 | F41: 전공 | G41: 8 | H41: 2008.03.03 | I41: Digital Architecture 고찰, Program 응용법 연구 | J41: 연구 및 공모전 참가 | K41: 김성욱 | L41: 황다솔 | M41: 최애정 | N41: 1530
A42: 기존 | B42: 40 | C42: FACE (Frontier of Architectural Construction Engineering) | D42: 공과대학 | E42: 건축학과 | F42: 전공 | G42: 52 | H42: 2013.03.02 | I42: BMI 특 습득, 건축 전반 이해 | J42: 세미나, 공모전, 토론, 워크샾 | K42: 차희성 | L42: 반지윤 | M42: 최애정 | N42: 1530
A43: 기존 | B43: 41 | C43: Studio I.S.M. | D43: 공과대학 | E43: 건축학과 | F43: 전공 | G43: 39 | H43: 1993.11.15 | I43: 건축토론 및 작품제작 | J43: 공모전 | K43: 권순정 | L43: 이채원 | M43: 최애정 | N43: 1530
A44: 기존 | B44: 42 | C44: 공간모음 | D44: 공과대학 | E44: 건축학과 | F44: 전공 | G44: 80 | H44: 1986.03.01 | I44: 건축에 대한 이해와 연구 | J44: 워크샾, 답사, 세미나, 공모전 | K44: 한지형 | L44: 박찬홍 | M44: 최애정 | N44: 1530
A45: 기존 | B45: 43 | C45: 바로서기 | D45: 공과대학 | E45: 건축학과 | F45: 전공 | G45: 64 | H45: 1993.05.18 | I45: 건축의 역사를 바로 이해 | J45: 세미나, 워크샾 | K45: 김도식 | L45: 고 건 | M45: 최애정 | N45: 1530
A46: 기존 | B46: 44 | C46: 이큐빅(E-CUBIC) | D46: 공과대학 | E46: 건축학과 | F46: 전공 | G46: 140 | H46: 2011.03.01 | I46: 친환경 건축설계 학습 | J46: 세미나, 공모전,토론,워크샵 | K46: 김선숙 | L46: 김은수 | M46: 최애정 | N46: 1530
A47: 기존 | B47: 45 | C47: UAJOUS | D47: 공과대학 | E47: 건축학과 | F47: 전공 | G47: 91 | H47: 2022.03.01 | I47: 건축대학 학생들 간의 교류 | J47: 전시, 튜터링, 답사 | K47: 이황 | L47: 류동균 | M47: 최애정 | N47: 1530
A48: 신규 | B48: 46 | C48: MS | D48: 공과대학 | E48: 건축학과 | F48: 전공 | G48: 11 | H48: 2023.03.14 | I48: 경제적 지식 증진, 시장 흐름을 파악 | J48: 연구 | K48: 안형욱 | L48: 박예성 | M48: 최애정 | N48: 1530
A49: 신규 | B49: 47 | C49: A2 | D49: 공과대학 | E49: 건축학과 | F49: 비전공 | G49: 79 | H49: 2011.05.03 | I49: 운동을 통한 교류 | J49: 축구 | K49: 차희성 | L49: 정혜성 | M49: 최애정 | N49: 1530
A50: 기존 | B50: 48 | C50: 자비지 | D50: 공과대학 | E50: 환경안전공학과 | F50: 비전공 | G50: 46 | H50: 18.09.10 | I50: 취업을 대비하기 위한 사전 준비 | J50: 취업을 위한 준비활동 | K50: 이재영 | L50: 김태운 | M50: - | N50: 2329
A51: 기존 | B51: 49 | C51: 지구방위대 | D51: 공과대학 | E51: 환경안전공학과 | F51: 비전공 | G51: 27 | H51: 07.05.02 | I51: 축구를 통한 친목도모 | J51: 친선경기, 친목도모 | K51: 이창구 | L51: 조성래 | M51: - | N51: 2329
A52: 기존 | B52: 50 | C52: 터지기 | D52: 공과대학 | E52: 환경안전공학과 | F52: 전공 | G52: 70 | H52: 91.09.19 | I52: 환경오염파괴실태를 인지, 생활 속에서 환경지킴 | J52: 학술토론, 세미나 | K52: 정승호 | L52: 명민규 | M52: - | N52: 2329
A53: 기존 | B53: 51 | C53: WAI(Who Am I) | D53: 공과대학 | E53: 산업공학과 | F53: 전공 | G53: 92 | H53: 2021.04.12 | I53: 산업공학 맞춤형 취업 정보 공유 및 준비 | J53: 세미나 | K53: 신현정 | L53: 강석훈 | M53: 강보경 | N53: 2416
A54: 기존 | B54: 52 | C54: 아콘(Archon) | D54: 공과대학 | E54: 산업공학과 | F54: 전공 | G54: 72 | H54: 06.11.11 | I54: 기업의 문제를 해결해 주고 그들의 비전과 목적을 달성 | J54: 비즈니스 컨설팅 | K54: 이주연 | L54: 백강현 | M54: 강보경 | N54: 2416
A55: 기존 | B55: 53 | C55: ASECON (Auto Security Control) | D55: 공과대학 | E55: 산업공학과 | F55: 전공 | G55: 99 | H55: 1995.04.01 | I55: 산업공학과 학생들의 공통적인 관심분야 공유 및 폭넓은 연구 | J55: 세미나 | K55: 왕지남 | L55: 송재원 | M55: 강보경 | N55: 2416
A56: 기존 | B56: 54 | C56: FC 프라임 | D56: 공과대학 | E56: 산업공학과 | F56: 비전공 | G56: 55 | H56: 2012.0.3.27 | I56: 축구를 통해 친목 도모 및 체력강화 | J56: 교내외 축구출전 | K56: 정준하 | L56: 김지민 | M56: 강보경 | N56: 2416
A57: 기존 | B57: 55 | C57: M&S | D57: 공과대학 | E57: 산업공학과 | F57: 전공 | G57: 146 | H57: 2010.03.12 | I57: HLA,RTI, 합성환경 등 국방 M&S에 관련된 분야를 대학원 연구실과 연계하여 학습 | J57: 프로젝트를 실시하여 이론 습득 및 연구/개발 | K57: 박상철 | L57: 남건우 | M57: 강보경 | N57: 2416
A58: 기존 | B58: 56 | C58: 물류소학회(LIST21) | D58: 공과대학 | E58: 산업공학과 | F58: 전공 | G58: 124 | H58: 1990.03.02 | I58: 산업사회의 모든 물적흐름 분석 및 프로젝트를 통한 학습증진 | J58: 프로그램 개발 및 학회 참가 | K58: 신영철 | L58: 권정욱 | M58: 강보경 | N58: 2416
A59: 기존 | B59: 57 | C59: 파린이 | D59: 공과대학 | E59: 산업공학과 | F59: 전공 | G59: 78 | H59: 2021.12.27 | I59: 서로 자극하고 서로 성장하게 하며 파이썬 학습 | J59: 세미나 | K59: 최진영 | L59: 박용훈 | M59: 강보경 | N59: 2416
A60: 기존 | B60: 58 | C60: ATFC(Ajou Transportaion Football Club) | D60: 공과대학 | E60: 교통시스템공학과 | F60: 비전공 | G60: 32 | H60: 2002.03.03 | I60: 축구를 통한 친목도모 | J60: 친선경기,친목도모 | K60: 소재현 | L60: 이환인 | M60: 석혜진 | N60: 1529
A61: 기존 | B61: 59 | C61: ATs (Ajou Transportation Study) | D61: 공과대학 | E61: 교통시스템공학과 | F61: 전공 | G61: 80 | H61: 1998.09.03 | I61: 실제 교통문제와 교통지식의 적용을 위한 활용 방안 연구 | J61: 프로젝트 수행, 세미나 | K61: 윤일수 | L61: 송민규 | M61: 석혜진 | N61: 1529
A62: 기존 | B62: 60 | C62: Cheer-Up(취얼업) | D62: 공과대학 | E62: 교통시스템공학과 | F62: 전공 | G62: 78 | H62: 2018.09.13 | I62: 취업의 어려움을 대비하기 위한 사전 준비 및 취업 정보 공유 | J62: 세미나, 토론 | K62: 윤일수 | L62: 조성은 | M62: 석혜진 | N62: 1529
A63: 기존 | B63: 61 | C63: FLY HIGH | D63: 공과대학 | E63: 교통시스템공학과 | F63: 비전공 | G63: 55 | H63: 2010.3.10 | I63: 농구를 통한 친목 도모 | J63: 교내외 농구경기참가 | K63: 유정훈 | L63: 조현인 | M63: 석혜진 | N63: 1529
A64: 기존 | B64: 62 | C64: TuF(Transportation Under Friendship) | D64: 공과대학 | E64: 교통시스템공학과 | F64: 전공 | G64: 50 | H64: 2003.03.02 | I64: 교통인으로서 교통에 대한 지식범위를 넓힘 | J64: 토의, 외부기관 방문 | K64: 이상수 | L64: 백승훈 | M64: 석혜진 | N64: 1529
A65: 신규 | B65: 63 | C65: AADT(Ajou AI Data analysis association of TSE) | D65: 공과대학 | E65: 교통시스템공학과 | F65: 전공 | G65: 22 | H65: 2023.03.01. | I65: AI와 데이터 분석 지식을 넓힘 | J65: 스터디, 프로젝트 수행 | K65: 김의진 | L65: 오다인 | M65: 석혜진 | N65: 1529
A66: 기존 | B66: 64 | C66: 일본연구회 | D66: 국제학부 | E66: 국제학부 | F66: 전공 | G66: 17 | H66: 98.3.5 | I66: 일본전문가 인재양성 및 언어능력 향상 | J66: 문화체험, 세미나, 교류회 | K66: 김종식 | L66: 김재현 | M66: 손희민 | N66: 1691
A67: 기존 | B67: 65 | C67: 중국연구회 | D67: 국제학부 | E67: 국제학부 | F67: 전공 | G67: 21 | H67: 98.3.2 | I67: 중국에 대한 감각과 언어 및 실무능력 향상 | J67: 견학, 세미나, 워크숍, 교류회 | K67: 한상준 | L67: 김지민 | M67: 손희민 | N67: 1691
A68: 신규 | B68: 66 | C68: 국제통상연구회 | D68: 국제학부 | E68: 국제학부 | F68: 전공 | G68: 20 | H68: 98.3.1 | I68: 국제적인 감각 습득 및 언어능력겸비 | J68: 토론, 견학, 세미나, 해외문화체험 | K68: 김용기 | L68: 김진우 | M68: 손희민 | N68: 1691
A69: 신규 | B69: 67 | C69: 한국학연구회 | D69: 국제학부 | E69: 국제학부 | F69: 전공 | G69: 40 | H69: 18.3.14 | I69: 교내 유학생들의 한국에 대한 이해의 심화와 언어 능력 향상 | J69: 문화체험, 답사, 세미나, 스터디, 교류회 | K69: 이상신 | L69: QUACH, THI THUY TRANG | M69: 손희민 | N69: 1691
A70: 기존 | B70: 68 | C70: 몸부림 | D70: 사회과학대학 | E70: 경제학과 | F70: 전공 | G70: 34 | H70: 87.3.24 | I70: 사회과학서적, 영상물 토론을 통해 사고력과 자기표현능력 배양 | J70: 주제발표회 | K70: 한종석 | L70: 성의창 | M70: 김난령 | N70: 2732
A71: 기존 | B71: 69 | C71: 율스트릿 | D71: 사회과학대학 | E71: 경제학과 | F71: 전공 | G71: 47 | H71: 18.3.22 | I71: 주식투자 및 증권 연구 | J71: 세미나, 토론 | K71: 김한성 | L71: 박지수 | M71: 김난령 | N71: 2732
A72: 신규 | B72: 70 | C72: 엔 돌 핀 | D72: 사회과학대학 | E72: 경제학과 | F72: 비전공 | G72: 20 | H72: 2023.3.2 | I72: 스포츠르르 통해 남녀 상관없이 친목도모 | J72: 볼링 | K72: 김태봉 | L72: 손진석 | M72: 김난령 | N72: 2732
A73: 기존 | B73: 71 | C73: 싸커노믹스 | D73: 사회과학대학 | E73: 경제학과 | F73: 비전공 | G73: 32 | H73: 88.3.2 | I73: 축구통한 친목도모 | J73: 경기 | K73: 김한성 | L73: 이지민 | M73: 김난령 | N73: 2732
A74: 기존 | B74: 72 | C74: 씨알의 소리 | D74: 사회과학대학 | E74: 경제학과 | F74: 비전공 | G74: 26 | H74: 88.3.2 | I74: 민중가요 및 공연을 통한 구성원간의 소통 | J74: 공연 | K74: 김한성 | L74: 이동우 | M74: 김난령 | N74: 2732
A75: 기존 | B75: 73 | C75: 루카스(LUKAS Band) | D75: 사회과학대학 | E75: 행정학과 | F75: 비전공 | G75: 27 | H75: 10.4.2 | I75: 연주 및 노래연습을 통한 친목도모 | J75: 공연 | K75: 권향원 | L75: 이하은 | M75: 김난령 | N75: 2732
A76: 기존 | B76: 74 | C76: PASS | D76: 사회과학대학 | E76: 행정학과 | F76: 비전공 | G76: 70 | H76: 08.3.2 | I76: 풋살경기를 통한 소통 | J76: 풋살 | K76: 윤창근 | L76: 김진성 | M76: 김난령 | N76: 2732
A77: 기존 | B77: 75 | C77: 낮에 나온 반달 | D77: 사회과학대학 | E77: 심리학과 | F77: 전공 | G77: 30 | H77: 02.9.1 | I77: 아동심리연구 | J77: 세미나, 봉사활동 | K77: 김은정 | L77: 원은서 | M77: 이우진 | N77: 2792
A78: 기존 | B78: 76 | C78: 범인 | D78: 사회과학대학 | E78: 심리학과 | F78: 전공 | G78: 20 | H78: 05.9.1 | I78: 범죄심리학연구 | J78: 스터디 토의 | K78: 김은하 | L78: 이호성 | M78: 이우진 | N78: 2792
A79: 기존 | B79: 77 | C79: 사람과사회 | D79: 사회과학대학 | E79: 심리학과 | F79: 전공 | G79: 35 | H79: 91.3.2 | I79: 심리학의 다양한 관점 연구 | J79: 세미나 | K79: 최윤영 | L79: 김단비 | M79: 이우진 | N79: 2792
A80: 기존 | B80: 78 | C80: 심볼 | D80: 사회과학대학 | E80: 심리학과 | F80: 비전공 | G80: 16 | H80: 91.3.8 | I80: 체육대회, 타학과와 운동교류 | J80: 경기 | K80: 김경일 | L80: 위태경 | M80: 이우진 | N80: 2792
A81: 기존 | B81: 79 | C81: 심씨네 | D81: 사회과학대학 | E81: 심리학과 | F81: 전공 | G81: 34 | H81: 98.12.6 | I81: 영화속 심리학 연구 | J81: 상연회, 영화제 | K81: 신강현 | L81: 임하영 | M81: 이우진 | N81: 2792
A82: 신규 | B82: 80 | C82: 씨리얼(See-real) | D82: 사회과학대학 | E82: 심리학과 | F82: 전공 | G82: 17 | H82: 09.03.20 | I82: 광고 및 소비자 심리 연구 | J82: 세미나, 토론 | K82: 김경일 | L82: 이선주 | M82: 이우진 | N82: 2792
A83: 기존 | B83: 81 | C83: 안한숙 밴드 | D83: 사회과학대학 | E83: 심리학과 | F83: 비전공 | G83: 32 | H83: 98.10.23 | I83: 친목도모를 위한 밴드활동 | J83: 공연 | K83: 김경일 | L83: 박수연 | M83: 이우진 | N83: 2792
A84: 기존 | B84: 82 | C84: 반딧불이 | D84: 사회과학대학 | E84: 사회학과 | F84: 전공 | G84: 15 | H84: 05.3.2 | I84: 독서 세미나 활동 및 독서 토론 | J84: 세미나, 스터디, 토론 | K84: 김한상 | L84: 윤정인 | M84: 박래욱 | N84: 2736
A85: 기존 | B85: 83 | C85: 아레테(ARETE) | D85: 사회과학대학 | E85: 정치외교학과 | F85: 비전공 | G85: 22 | H85: 14.3.17 | I85: 친목도모를 위한 밴드활동 | J85: 공연 | K85: 문우진 | L85: 강나연 | M85: 박래욱 | N85: 2736
A86: 기존 | B86: 84 | C86: SACT(삭트 S.A.C.T) | D86: 사회과학대학 | E86: 정치외교학과 | F86: 비전공 | G86: 28 | H86: 14.3.17 | I86: 등산을 통한 친목 도모 및 체력증진 | J86: 등산, 정보교류 | K86: 강신구 | L86: 이병윤 | M86: 박래욱 | N86: 2736
A87: 기존 | B87: 85 | C87: 민중사랑 (민사) | D87: 사회과학대학 | E87: 정치외교학과 | F87: 전공 | G87: 25 | H87: 90.4.9 | I87: 민중의 삶과 노동문제를 사회과학적으로 연구 | J87: 세미나, 심포지움 | K87: 김흥규 | L87: 김민좌 | M87: 박래욱 | N87: 2736
A88: 기존 | B88: 86 | C88: 카리스마 | D88: 사회과학대학 | E88: 정치외교학과 | F88: 비전공 | G88: 18 | H88: 05.3.7 | I88: 정치외교전공 축구활동 | J88: 경기 | K88: 김명철 | L88: 조장현 | M88: 박래욱 | N88: 2736
A89: 기존 | B89: 87 | C89: HaMer | D89: 소프트웨어융합대학 | E89: 사이버보안학과 | F89: 전공 | G89: 82 | H89: 00.5.9 | I89: 정보보안 소학회로 모의해킹대회, 전공세미나 및 스터디 활동 | J89: 세미나와 보안에 대한 이해를 위한 교육 및 프로젝트 | K89: 예홍진 | L89: 한주현 | M89: 정상은 | N89: 3678
A90: 기존 | B90: 88 | C90: Whois | D90: 소프트웨어융합대학 | E90: 사이버보안학과 | F90: 전공 | G90: 106 | H90: 15.11.26 | I90: 암호학연구 | J90: 세미나 | K90: 곽진 | L90: 성민규 | M90: 정상은 | N90: 3678
A91: 기존 | B91: 89 | C91: A.N.S.I | D91: 소프트웨어융합대학 | E91: 소프트웨어학과 | F91: 전공 | G91: 133 | H91: 07.11.26 | I91: 자료구조와 알고리즘에 대해 공부하고, 창의적인 문제 해결 기법에 대한 심도 있는 연구 | J91: 연구 및 프로젝트, 경시대회 참가 | K91: 오상윤 | L91: 이헌우 | M91: 한준호 | N91: 2430
A92: 기존 | B92: 90 | C92: 세미콜론 | D92: 소프트웨어융합대학 | E92: 소프트웨어학과 | F92: 비전공 | G92: 61 | H92: 90.10.04 | I92: 음악을 좋아하는 사람들과 악기 연주, 노래를 하며 친목도모 | J92: 매년 정기 공연 | K92: 손태식 | L92: 이나현 | M92: 한준호 | N92: 2430
A93: 기존 | B93: 91 | C93: HANTOR(한터) | D93: 소프트웨어융합대학 | E93: 소프트웨어학과 | F93: 전공 | G93: 166 | H93: 89.04.10 | I93: C언어 강의, 객체지향 프로그래밍 언어, 안드로이드 스터디 및 프로젝트 진행 | J93: 자체세미나, 대내외 공모전 및 경진 대회 참가, 매학기 전시 | K93: 안정섭 | L93: 이장원 | M93: 한준호 | N93: 2430
A94: 기존 | B94: 92 | C94: NUOVO | D94: 소프트웨어융합대학 | E94: 인공지능융합학과 | F94: 전공 | G94: 58 | H94: 1900-01-22T01:12:00 | I94: 인공지능 스터디를 통한 지식 함양 | J94: 인공지능 학술 스터디 | K94: 이석원 | L94: 김진찬 | M94: 최슬기 | N94: 3813
A95: 기존 | B95: 93 | C95: 볼랜드(Balland) | D95: 소프트웨어융합대학 | E95: 소프트웨어융합대학 공통 | F95: 비전공 | G95: 45 | H95: 1995.05.01 | I95: 축구를통해선후배간의 정을느끼고 단결을 꾀하며 체력증진 실력향상을위한노력 | J95: 정기 OB,Yb전개최,교내축구대회 참가 | K95: 류기열 | L95: 유정협 | M95: 전소현 | N95: 2447
A96: 기존 | B96: 94 | C96: 케이아스 (CHAOS) | D96: 소프트웨어융합대학 | E96: 소프트웨어융합대학 공통 | F96: 비전공 | G96: 36 | H96: 1995.04.11 | I96: 농구를 통한 체력증진 친목도모 | J96: 정기훈련, 친선경기 | K96: 이환용 | L96: 송인기 | M96: 전소현 | N96: 2447
A97: 기존 | B97: 95 | C97: TML (Total Multimedia Lovers) | D97: 소프트웨어융합대학 | E97: 소프트웨어융합대학 공통 | F97: 전공 | G97: 1 | H97: 2001.03.01 | I97: 게임에 대한 다양한 연구와 이를 바탕으로 재미있는 게임을 제작 | J97: 포트폴리오를 만들고 공모전에 출품 기획, 게임제작 | K97: 오규환 | L97: 최시현 | M97: 전소현 | N97: 2447
A98: 기존 | B98: 96 | C98: FC봄봄 | D98: 소프트웨어융합대학 | E98: 국방디지털융합학과 | F98: 비전공 | G98: 48 | H98: 2017.3.16 | I98: 친선도모, 체력증진 | J98: 축구경기 | K98: 임재성 | L98: 이학현 | M98: 채지우 | N98: 2991
A99: 신규 | B99: 97 | C99: IRREGULAR | D99: 소프트웨어융합대학 | E99: 국방디지털융합학과 | F99: 비전공 | G99: 36 | H99: 2022.03.15 | I99: 친선도모, 체력증진 | J99: 농구경기 | K99: 이민우 | L99: 유태우 | M99: 채지우 | N99: 2991
A100: 신규 | B100: 98 | C100: Volatus | D100: 소프트웨어융합대학 | E100: 국방디지털융합학과 | F100: 전공 | G100: 81 | H100: 2023.03.02 | I100: 논문연구, 미래진로설계 | J100: 학술커뮤니티 | K100: 이민우 | L100: 박재형 | M100: 채지우 | N100: 2991
A101: 기존 | B101: 99 | C101: CONNECT | D101: 소프트웨어융합대학 | E101: 디지털미디어학과 | F101: 전공 | G101: 90 | H101: 2012.01.01. | I101: 단순히 영상 제작활동을 하는 것이 아니라 기획, 촬영, 편집, 사운드, 연출 등의 활동을 하며 나아가 직접 프로젝트를 기획함으로써 학회활동을 통해서 배운 것들을 실질적으로 경험해 볼 수 있다. | J101: 영상 촬영 및 편집 관련 활동 | K101: 장우진 | L101: 방한빈 | M101: 박선영 | N101: 2631
A102: 기존 | B102: 100 | C102: 고래 | D102: 소프트웨어융합대학 | E102: 디지털미디어학과 | F102: 전공 | G102: 59 | H102: 2004.12.19 | I102: 디자인 툴인 일러스트레이터와 포토샵을 배워보고 이를 적용하여 다양한 디자인 및 굿즈를 제작 | J102: 그래픽 디자인 및 굿즈 제작 활동 | K102: 이경원 | L102: 최병현 | M102: 박선영 | N102: 2631
A103: 기존 | B103: 101 | C103: 브레인스톰(BrainStrom) | D103: 소프트웨어융합대학 | E103: 디지털미디어학과 | F103: 전공 | G103: 72 | H103: 1998.05.01. | I103: 게임제작에 대한 학습과 정보 공유 | J103: 게임 기획, 개발, 그래픽 및 관련 행사 참여 활동 | K103: 오규환 | L103: 서민철 | M103: 박선영 | N103: 2631
A104: 기존 | B104: 102 | C104: ARTISAN(아티젠) | D104: 소프트웨어융합대학 | E104: 디지털미디어학과 | F104: 전공 | G104: 66 | H104: 2009.03.17. | I104: 3D 애니메이션과 모델링을 통한 애니메이션에 대한 전반적 이해와 모델링 실습에 의한 실력향상 | J104: 전공 관련 PC 프로그램(MAYA) 활용 활동 | K104: 석혜정 | L104: 박사랑 | M104: 박선영 | N104: 2631
A105: 기존 | B105: 103 | C105: FC미디어 | D105: 소프트웨어융합대학 | E105: 디지털미디어학과 | F105: 비전공 | G105: 50 | H105: 1998.03.04. | I105: 미디어학과 유일의 축구소학회로 20여년이 넘는 역사를 지닌 소학회로 선후배들 간 끈끈한 유대감으로 축구를 통하여 즐거운 학교생활 지향 | J105: 축구를 통한 친목활동 | K105: 경민호 | L105: 권오영 | M105: 박선영 | N105: 2631
A106: 기존 | B106: 104 | C106: APC(Ajou pharm Photo Club) | D106: 약학대학 | E106: 약학과 | F106: 비전공소학회 | G106: 43 | H106: 14.03.01 | I106: 사진을 통한 친목도모 | J106: 사진 | K106: 장선영 | L106: 심재건 | M106: 변은실 | N106: 3433
A107: 기존 | B107: 105 | C107: 아약스(AYACS) | D107: 약학대학 | E107: 약학과 | F107: 비전공소학회 | G107: 36 | H107: 12.09.01 | I107: 약학대학 대표 축구대회 참가 | J107: 경기 | K107: 서민덕 | L107: 김승환 | M107: 변은실 | N107: 3433
A108: 기존 | B108: 106 | C108: 청춘책방 | D108: 약학대학 | E108: 약학과 | F108: 전공소학회 | G108: 50 | H108: 14.06.01 | I108: 독서를 포함한 여러 문화활동을 통한 약학인의 교양 증진을 목적 | J108: 독서토론회 | K108: 이한길 | L108: 정대현 | M108: 변은실 | N108: 3433
A109: 기존 | B109: 107 | C109: 팝크루 | D109: 약학대학 | E109: 약학과 | F109: 비전공소학회 | G109: 26 | H109: 14.09.20 | I109: 춤 연습 및 공연을 통한 친목활동 | J109: 공연 | K109: 신수영 | L109: 조가인 | M109: 변은실 | N109: 3433
A110: 기존 | B110: 108 | C110: 약오름 | D110: 약학대학 | E110: 약학과 | F110: 비전공소학회 | G110: 33 | H110: 16.03.02 | I110: 등산을 통한 친목도모 | J110: 등산 | K110: 윤태종 | L110: 손민우 | M110: 변은실 | N110: 3433
A111: 기존 | B111: 109 | C111: 야키스 | D111: 약학대학 | E111: 약학과 | F111: 비전공소학회 | G111: 41 | H111: 13.11.14 | I111: 야구경기를 통한 교수와 학생간의 친목도모 | J111: 경기 | K111: 박영준 | L111: 김제헌 | M111: 변은실 | N111: 3433
A112: 기존 | B112: 110 | C112: 아벨 | D112: 약학대학 | E112: 약학과 | F112: 전공소학회 | G112: 40 | H112: 14.03.13 | I112: 멘토링 및 토론을 통해 약대 선후배간 교류 | J112: 토론, 멘토링 | K112: 이범진(연구년) | L112: 강혜원 | M112: 변은실 | N112: 3433
A113: 기존 | B113: 111 | C113: 아주콕 | D113: 약학대학 | E113: 약학과 | F113: 비전공소학회 | G113: 86 | H113: 21.03.01 | I113: 배드민턴을 통한 친목도모 | J113: 경기 | K113: 이한길 | L113: 이준영 | M113: 변은실 | N113: 3433
A114: 기존 | B114: 112 | C114: 아뮤너스 | D114: 약학대학 | E114: 약학과 | F114: 전공소학회 | G114: 94 | H114: 12.03.01 | I114: 의료봉사활동 및 약대간의 교류 | J114: 봉사활동 | K114: 이숙향 | L114: 이채정 | M114: 변은실 | N114: 3433
A115: 기존 | B115: 113 | C115: 구사모 | D115: 약학대학 | E115: 약학과 | F115: 비전공소학회 | G115: 25 | H115: 11.03.10 | I115: 농구 경기를 통한 교수와 학생간의 친목도모 | J115: 경기 | K115: 김형수 | L115: 김건우 | M115: 변은실 | N115: 3433
A116: 기존 | B116: 114 | C116: 맛동 | D116: 약학대학 | E116: 약학과 | F116: 비전공소학회 | G116: 82 | H116: 14.09.01 | I116: 학교 근처 및 서울지역 맛집 탐방을 통해 선후배간의 교류활성화를 도모. | J116: 취미활동 및 친목도모 | K116: 백승훈 | L116: 김승연 | M116: 변은실 | N116: 3433
A117: 기존 | B117: 115 | C117: Ywe | D117: 약학대학 | E117: 약학과 | F117: 비전공소학회 | G117: 76 | H117: 22.03.01 | I117: 와인과 위스키들을 과학적인측면에서 재해석 및 분석, 친목도모 | J117: 취미활동 및 친목도모 | K117: 장선영 | L117: 임태경 | M117: 변은실 | N117: 3433
A118: 기존 | B118: 116 | C118: FC바투 | D118: 인문대학 | E118: 국어국문학과 | F118: 비전공 | G118: 60 | H118: 03.10.23 | I118: 친목도모와 학교생활 정보 공유 | J118: 축구를 통한 체력증진과 친목도모 | K118: 조하연 | L118: 이진원 | M118: 김다은 | N118: 2822
A119: 기존 | B119: 117 | C119: HISC(히스크) | D119: 인문대학 | E119: 국어국문학과 | F119: 전공 | G119: 2 | H119: 22.03. | I119: 인문대유학생커뮤니티로서 인문대 전체 유학생들에게 인간적인 교류와 도움을 위한 소학회 | J119: 인문대 외국인유학생들 간 커뮤니케이션 활동 | K119: 이상신 | L119: DUONG, THI NHAN | M119: 김다은 | N119: 2822
A120: 기존 | B120: 118 | C120: 나들목 | D120: 인문대학 | E120: 국어국문학과 | F120: 전공 | G120: 11 | H120: 15.04.01 | I120: 발표 연습 | J120: 세미나 및 발표스터디 | K120: 이상신 | L120: 차수연 | M120: 김다은 | N120: 2822
A121: 기존 | B121: 119 | C121: 시숲 | D121: 인문대학 | E121: 국어국문학과 | F121: 전공 | G121: 21 | H121: 90.3.2 | I121: 시 탐구와 비평 | J121: 문학활동(시) 및 세미나 | K121: 문혜원 | L121: 김영서 | M121: 김다은 | N121: 2822
A122: 기존 | B122: 120 | C122: C.O.L(콜) | D122: 인문대학 | E122: 문화콘텐츠학과 | F122: 전공 | G122: 15 | H122: 10.3.15 | I122: 문화콘텐츠 기획 및 제작과 공유 결합 | J122: 문화콘텐츠 제작 및 공모전 참여 | K122: 김민규 | L122: 박현정 | M122: 김다은 | N122: 2822
A123: 기존 | B123: 121 | C123: 머스타드(MustAD) | D123: 인문대학 | E123: 문화콘텐츠학과 | F123: 전공 | G123: 25 | H123: 14.10.24 | I123: 광고와 마케팅의 역할과 중요성에 대해 학습 | J123: 광고 스터디 및 공모전 참여, 광고제 기획운영 | K123: 장예빛 | L123: 이미소 | M123: 김다은 | N123: 2822
A124: 기존 | B124: 122 | C124: 시나리오 나무 | D124: 인문대학 | E124: 문화콘텐츠학과 | F124: 전공 | G124: 63 | H124: 10.3.8 | I124: 문화콘텐츠 시나리오나 스토리텔링을 글로써 표현법 연구 | J124: 세미나, 스터디 | K124: 전윤수 | L124: 이채민 | M124: 김다은 | N124: 2822
A125: 기존 | B125: 123 | C125: 아티스 | D125: 인문대학 | E125: 문화콘텐츠학과 | F125: 전공 | G125: 22 | H125: 22.03. | I125: 문화예술에 대한 다양한 경험을 통해 예술에 대한 자신의 주관을 형성하고자함 | J125: 예술탐구 | K125: 박재연 | L125: 이예린 | M125: 김다은 | N125: 2822
A126: 기존 | B126: 124 | C126: Les Amateurs(레자마떼) | D126: 인문대학 | E126: 불어불문학과 | F126: 전공 | G126: 15 | H126: 1990년 | I126: 프랑스의 대중문화를 탐구하고 알리기 | J126: 프랑스어 관련 학습활동 | K126: 김용현 | L126: 심진우 | M126: 김다은 | N126: 2822
A127: 기존 | B127: 125 | C127: 독독회 | D127: 인문대학 | E127: 사학과 | F127: 전공 | G127: 20 | H127: 2019년 | I127: 사학과 학부생들의 학술적 역량을 높이고자 개설 | J127: 한문스터디, 영어스터디를 통한 언어능력함양 | K127: 이상국 ->한상우 | L127: 김주영 | M127: 김다은 | N127: 2822
A128: 기존 | B128: 126 | C128: 역사기행반 | D128: 인문대학 | E128: 사학과 | F128: 전공 | G128: 45 | H128: 93.3.15 | I128: 역사유적지 탐방으로 주체적 역사의식 | J128: 답사, 스터디 | K128: 한상준 | L128: 노연희 | M128: 김다은 | N128: 2822
A129: 기존 | B129: 127 | C129: 더사리 | D129: 인문대학 | E129: 영어영문학과 | F129: 비전공 | G129: 16 | H129: 1997년 | I129: 사회적인 문제 토론과 인식 고취 | J129: 토론회, 세미나,학술제 | K129: 문승재 -> 정재식 | L129: 윤예진 | M129: 김다은 | N129: 2822
A130: 기존 | B130: 128 | C130: 샘N샘(샘앤샘) | D130: 인문대학 | E130: 영어영문학과 | F130: 전공 | G130: 20 | H130: 10.6.1 | I130: 임용고시 정보공유 및 스터디 | J130: 세미나,스터디 | K130: 김현옥 | L130: 최예진 | M130: 김다은 | N130: 2822
A131: 신규 | B131: 129 | C131: 소담 | D131: 인문대학 | E131: 국어국문학과 | F131: 전공 | G131: 25 | H131: 23.03. | I131: 소설 탐구와 비평 및 소설 창작활동 | J131: 세미나,발표스터디 | K131: 장두영 | L131: 김인영 | M131: 김다은 | N131: 2822
A132: 기존 | B132: 130 | C132: MOSS | D132: 자연과학대학 | E132: 자연과학대학 공통 | F132: 비전공 | G132: 50 | H132: 93.03.02 | I132: 밴드 합주 및 공연을 통한 협동과 선후배와의 소통 | J132: 교내외행사 공연 | K132: 염동일 | L132: 김민재 | M132: 이지연 | N132: 2553
A133: 기존 | B133: 131 | C133: 늑대야 | D133: 자연과학대학 | E133: 자연과학대학 공통 | F133: 비전공 | G133: 56 | H133: 03.2.23 | I133: 춤을 좋아하는 사람들이 모여 무대를 만들고 공연 | J133: 교내외행사 공연 | K133: 박대찬 | L133: 이혜민 | M133: 이지연 | N133: 2553
A134: 기존 | B134: 132 | C134: MathLab | D134: 자연과학대학 | E134: 수학과 | F134: 전공 | G134: 60 | H134: 04.3.1 | I134: 수학 전공지식 공유와 멘토링을 통한 선후배간의 친목 도목 | J134: 스터디, 세미나, 프로젝트 | K134: 신동욱 | L134: 이주홍 | M134: 이지연 | N134: 2553
A135: 기존 | B135: 133 | C135: MiC(Mathematics in Coding) | D135: 자연과학대학 | E135: 수학과 | F135: 전공 | G135: 32 | H135: 19.3.19 | I135: 수학과 코딩을 융합한 학습 및 프로젝트를 통한 지식습득 | J135: 스터디, 세미나 | K135: 최수영 | L135: 공다은 | M135: 이지연 | N135: 2553
A136: 기존 | B136: 134 | C136: Alchemy | D136: 자연과학대학 | E136: 화학과 | F136: 전공 | G136: 13 | H136: 04.3.1 | I136: 화학 전공 기초 및 응용 탐구를 통한 진로 탐색 | J136: 스터디, 세미나 | K136: 김유권 | L136: 이상우 | M136: 이지연 | N136: 2553
A137: 기존 | B137: 135 | C137: Covalent | D137: 자연과학대학 | E137: 화학과 | F137: 전공 | G137: 29 | H137: 19.11.06 | I137: 화학과 취업 정보 공유 및 진로탐색 | J137: 스터디, 세미나 | K137: 장혜영 | L137: 윤홍빈 | M137: 이지연 | N137: 2553
A138: 기존 | B138: 136 | C138: B.E.S.T | D138: 자연과학대학 | E138: 생명과학과 | F138: 전공 | G138: 1(모집중) | H138: 12.3.29 | I138: 생명과학과 학술 소학회로 스터디 및 학술활동 | J138: 스터디, 멘토링, 실험활동 | K138: 김혜선 | L138: 이광배 | M138: 이지연 | N138: 2553
A139: 기존 | B139: 137 | C139: DoBE | D139: 자연과학대학 | E139: 생명과학과 | F139: 전공 | G139: 18 | H139: 22.3.22 | I139: 생명과학과 전공 논문 탐구 및 학술활동 | J139: 논문 탐색, 포스터 제작, 발표 | K139: 이창한 | L139: 권하영 | M139: 이지연 | N139: 2553
A140: 신규 | B140: 138 | C140: 전투체육 | D140: 자연과학대학 | E140: 물리학과 | F140: 비전공 | G140: 13 | H140: 10.5.18 | I140: 축구를 통한 체력 증진과 물리학과 소통 | J140: 축구 | K140: 이재웅 | L140: 이우진 | M140: 이지연 | N140: 2553
A141: 신규 | B141: 139 | C141: ajou bb | D141: 자연과학대학 | E141: 물리학과 | F141: 비전공 | G141: 15 | H141: 23.3.13 | I141: 농구를 통한 물리학과 선후배간의 친목 교류 | J141: 농구 | K141: 이상운 | L141: 송인기 | M141: 이지연 | N141: 2553
A142: 신규 | B142: 140 | C142: 랩실 어디가? | D142: 자연과학대학 | E142: 물리학과 | F142: 전공 | G142: 25 | H142: 23.3.17 | I142: 물리학과 대학원 진학을 위한 랩실 탐방 | J142: 멘토링, 실험실 탐방 | K142: 이재웅 | L142: 김주환 | M142: 이지연 | N142: 2553
A143: 신규 | B143: 141 | C143: 서상유랑 | D143: 자연과학대학 | E143: 물리학과 | F143: 전공 | G143: 26 | H143: 23.3.17 | I143: 물리학과 독서 활동 및 토론과 스터디 활동 | J143: 독서 토론, 스터디 | K143: 하나영 | L143: 윤성현 | M143: 이지연 | N143: 2553
A144: 신규 | B144: 142 | C144: 액체술리학 | D144: 자연과학대학 | E144: 물리학과 | F144: 비전공 | G144: 19 | H144: 23.3.14 | I144: 술에 대한 물리학적 관점의 시음, 분석, 연구 | J144: 주류 분석, 연구, 세미나 | K144: 이상운 | L144: 송상용 | M144: 이지연 | N144: 2553
A145: 신규 | B145: 143 | C145: LCC | D145: 자연과학대학 | E145: 물리학과 | F145: 비전공 | G145: 4 | H145: 19.3.19 | I145: 기초 당구 실력 향상 및 당구 인식 변화를 위한 활동 | J145: 당구 | K145: 이상운 | L145: 지재환 | M145: 이지연 | N145: 2553
A146: 기존 | B146: 144 | C146: COMP D&A | D146: 정보통신대학 | E146: 전자공학과 | F146: 전공 | G146: 90 | H146: 90.3.4 | I146: 오디오 및 앰프 등의 아날로그 파트 및 마이컴 등 디지털 파트에 대한 연구 | J146: 마이컴을 이용한 임베디드 시스템 개발 및 프로그래밍 | K146: 정기현 | L146: 고준환 | M146: 차준환 | N146: 2356
A147: 기존 | B147: 145 | C147: X_TAL(크리스탈) | D147: 정보통신대학 | E147: 전자공학과 | F147: 전공 | G147: 188 | H147: 93.3.1 | I147: 마이크로프로세스 활용 작품제작 | J147: 마이크로프로세서 교육 및 로봇키트 제작 | K147: 이정원 | L147: 이효중 | M147: 차준환 | N147: 2356
A148: 기존 | B148: 146 | C148: 네트로닉스(netrinics) | D148: 정보통신대학 | E148: 전자공학과 | F148: 전공 | G148: 140 | H148: 1900-04-05 | I148: 컴퓨터 및 네트워크 연구 | J148: 자체서버를 이용한 네트워크 연구 및 세미나 | K148: 조위덕 | L148: 장재형 | M148: 차준환 | N148: 2356
A149: 기존 | B149: 147 | C149: 새 | D149: 정보통신대학 | E149: 전자공학과 | F149: 비전공 | G149: 24 | H149: 91.3.3 | I149: 미디어 언론으로 사회적 쟁점에 대해 토론 | J149: 세미나 | K149: 이기근 | L149: 조준영 | M149: 차준환 | N149: 2356
A150: 기존 | B150: 148 | C150: 오반칙 | D150: 정보통신대학 | E150: 전자공학과 | F150: 비전공 | G150: 44 | H150: 95.4.1 | I150: 농구를 통한 인간관계 형성 | J150: 교내외 대회 참가, 친선경기 | K150: 박용배 | L150: 송영환 | M150: 차준환 | N150: 2356
A151: 기존 | B151: 149 | C151: 일레븐 | D151: 정보통신대학 | E151: 전자공학과 | F151: 비전공 | G151: 100 | H151: 99.9.15 | I151: 축구를 통한 친목 도모 | J151: 정기훈련, 친선경기 | K151: 박성준 | L151: 강태윤 | M151: 차준환 | N151: 2356
A152: 기존 | B152: 150 | C152: 하늘음표 | D152: 정보통신대학 | E152: 전자공학과 | F152: 비전공 | G152: 101 | H152: 98.3.1 | I152: 전자음향기기를 익히고 공연 | J152: 정기공연 | K152: 이교범 | L152: 이주석 | M152: 차준환 | N152: 2356
